fUSD/lending_fUSD_20250811
["ID","MTS","AMOUNT","RATE_DAILY","PERIOD"]
[378617170,1754927451852,-1354.44,0.00016438,2]
[378617171,1754927451861,-400.0,0.00016438,2]
[378617172,1754927451870,-271.001234,0.00016438,2]
[378617173,1754927451880,-400.0,0.00016438,2]
[378617174,1754927451889,-645.18,0.00016438,2]
[378617175,1754927451898,-400.0,0.00016438,2]
[378617176,1754927451907,-400.0,0.00016438,2]
[378617177,1754927451917,-520.62,0.00016438,2]
[378617178,1754927451927,-1400.29,0.00016438,2]
[378617179,1754927451936,-400.0,0.00016438,2]
[378617180,1754927451946,-1307.1,0.00016438,2]
[378617181,1754927451955,-463.95806991,0.00016438,2]
[378617182,1754927451965,-400.0,0.00016438,2]
[378617183,1754927451974,-400.0,0.00016438,2]
[378617184,1754927451983,-400.0,0.00016438,2]
[378617185,1754927451994,-400.0,0.00016438,2]
[378617186,1754927452003,-400.0,0.00016438,2]
[378617187,1754927452012,-434.51,0.00016438,2]
[378617188,1754927452021,-659.56,0.00016438,2]
[378617189,1754927452031,-400.0,0.00016438,2]
[378617190,1754927452040,-240.829604,0.00016438,2]
[378617191,1754927452049,-400.0,0.00016438,2]
[378617192,1754927452058,-240.829604,0.00016438,2]
[378617193,1754927452068,-1215.79,0.00016438,2]
[378617194,1754927452077,-2382.83,0.00016438,2]
[378617195,1754927452087,-938.82,0.00016438,2]
[378617196,1754927452096,-1738.58,0.00016438,2]
[378617197,1754927452106,-240.829604,0.00016438,2]
[378617198,1754927452115,-500.0,0.00016438,2]
[378617199,1754927452125,-240.829604,0.00016438,2]
[378617200,1754927452135,-400.0,0.00016438,2]
[378617201,1754927452144,-240.829604,0.00016438,2]
[378617202,1754927452154,-414.98,0.00016438,2]
[378617203,1754927452163,-496.66,0.00016438,2]
[378617204,1754927452172,-533.92,0.00016438,2]
[378617205,1754927452182,-1542.52,0.00016438,2]
[378617206,1754927452191,-498.44,0.00016438,2]
[378617207,1754927452201,-400.0,0.00016438,2]
[378617208,1754927452210,-264.14051504,0.00016438,2]
[378617209,1754927452219,-240.829604,0.00016438,2]
[378617210,1754927452229,-150.0,0.00016438,2]
[378617211,1754927452239,-240.829604,0.00016438,2]
[378617212,1754927452247,-400.0,0.00016438,2]
[378617213,1754927452257,-240.829604,0.00016438,2]
[378617214,1754927452266,-240.829604,0.00016438,2]
[378617215,1754927452275,-240.829604,0.00016438,2]
[378617216,1754927452284,-250.0,0.00016438,2]
[378617217,1754927452294,-400.0,0.00016438,2]
[378617218,1754927452303,-400.0,0.00016438,2]
[378617219,1754927452312,-409.68,0.00016438,2]
[378617220,1754927452321,-400.0,0.00016438,2]
[378617221,1754927452330,-1016.42,0.00016438,2]
[378617222,1754927452339,-400.0,0.00016438,2]
[378617223,1754927452348,-816.39,0.00016438,2]
[378617224,1754927452358,-2633.78,0.00016438,2]
[378617225,1754927452367,-1809.21,0.00016438,2]
[378617226,1754927452377,-400.0,0.00016438,2]
[378617227,1754927452386,-1964.51,0.00016438,2]
[378617228,1754927452395,-538.22,0.00016438,2]
[378617229,1754927452405,-3503.73,0.00016438,2]
[378617230,1754927452414,-435.06,0.00016438,2]
[378617231,1754927452424,-400.0,0.00016438,2]
[378617232,1754927452433,-403.2615712,0.00016438,2]
[378617233,1754927452442,-3256.97,0.00016438,2]
[378617234,1754927452451,-420.48,0.00016438,2]
[378617235,1754927452460,-962.76,0.00016438,2]
[378617236,1754927452470,-586.15,0.00016438,2]
[378617237,1754927452479,-914.96,0.00016438,2]
[378617238,1754927452491,-1659.76,0.00016438,2]
[378617239,1754927452500,-400.0,0.00016438,2]
[378617240,1754927452509,-724.79,0.00016438,2]
[378617241,1754927452518,-439.21,0.00016438,2]
[378617242,1754927452527,-604.61,0.00016438,2]
[378617243,1754927452537,-1960.41,0.00016438,2]
[378617244,1754927452546,-3173.53,0.00016438,2]
[378617245,1754927452555,-2866.6,0.00016438,2]
[378617246,1754927452565,-317.84,0.00016438,2]
[378617247,1754927452574,-480.01,0.00016438,2]
[378617248,1754927452583,-400.0,0.00016438,2]
[378617249,1754927452592,-1133.05,0.00016438,2]
[378617250,1754927452601,-885.85,0.00016438,2]
[378617251,1754927452610,-400.0,0.00016438,2]
[378617252,1754927452619,-400.0,0.00016438,2]
[378617253,1754927452629,-938.77,0.00016438,2]
[378617254,1754927452638,-666.52,0.00016438,2]
[378617255,1754927452647,-400.0,0.00016438,2]
[378617256,1754927452656,-1859.66,0.00016438,2]
[378617257,1754927452665,-400.0,0.00016438,2]
[378617258,1754927452674,-3489.43,0.00016438,2]
[378617259,1754927452683,-400.0,0.00016438,2]
[378617260,1754927452692,-637.37,0.00016438,2]
[378617261,1754927452702,-400.0,0.00016438,2]
[378617262,1754927452715,-400.0,0.00016438,2]
[378617263,1754927452724,-1193.99,0.00016438,2]
[378617264,1754927452733,-623.83,0.00016438,2]
[378617265,1754927452743,-1442.49,0.00016438,2]
[378617266,1754927452753,-3863.66,0.00016438,2]
[378617267,1754927452762,-400.0,0.00016438,2]
[378617268,1754927452771,-478.55,0.00016438,2]
[378617269,1754927452781,-739.35,0.00016438,2]
[378617270,1754927452790,-747.94,0.00016438,2]
[378617271,1754927452799,-1621.0,0.00016438,2]
[378617272,1754927452808,-1451.09,0.00016438,2]
[378617273,1754927452816,-400.0,0.00016438,2]
[378617274,1754927452826,-400.0,0.00016438,2]
[378617275,1754927452835,-400.0,0.00016438,2]
[378617276,1754927452844,-151.0,0.00016438,2]
[378617277,1754927452855,-400.0,0.00016438,2]
[378617278,1754927452863,-151.0,0.00016438,2]
[378617279,1754927452872,-400.0,0.00016438,2]
[378617280,1754927452882,-755.66,0.00016438,2]
[378617281,1754927452890,-151.0,0.00016438,2]
[378617282,1754927452899,-1438.0,0.00016438,2]
[378617283,1754927452909,-1975.71,0.00016438,2]
[378617284,1754927452919,-151.0,0.00016438,2]
[378617285,1754927452928,-151.0,0.00016438,2]
[378617286,1754927452937,-151.0,0.00016438,2]
[378617287,1754927452946,-151.0,0.00016438,2]
[378617288,1754927452955,-859.19,0.00016438,2]
[378617289,1754927452964,-400.0,0.00016438,2]
[378617290,1754927452973,-457.653727,0.00016438,2]
[378617291,1754927452982,-400.0,0.00016438,2]
[378617292,1754927452992,-400.0,0.00016438,2]
[378617293,1754927453001,-400.0,0.00016438,2]
[378617294,1754927453011,-421.6,0.00016438,2]
[378617295,1754927453020,-400.0,0.00016438,2]
[378617296,1754927453029,-428.6,0.00016438,2]
[378617297,1754927453038,-1068.17,0.00016438,2]
[378617298,1754927453047,-400.0,0.00016438,2]
[378617299,1754927453056,-400.0,0.00016438,2]
[378617300,1754927453065,-484.15,0.00016438,2]
[378617301,1754927453074,-400.0,0.00016438,2]
[378617302,1754927453083,-760.72,0.00016438,2]
[378617303,1754927453092,-1000.0,0.00016438,2]
[378617304,1754927453101,-1041.16,0.00016438,2]
[378617305,1754927453110,-400.0,0.00016438,2]
[378617306,1754927453119,-476.72,0.00016438,2]
[378617307,1754927453128,-400.0,0.00016438,2]
[378617308,1754927453137,-400.0,0.00016438,2]
[378617309,1754927453146,-2963.85,0.00016438,2]
[378617310,1754927453155,-577.51,0.00016438,2]
[378617311,1754927453164,-1510.98,0.00016438,2]
[378617312,1754927453173,-1158.29,0.00016438,2]
[378617313,1754927453183,-513.62,0.00016438,2]
[378617314,1754927453192,-400.0,0.00016438,2]
[378617315,1754927453201,-3773.45,0.00016438,2]
[378617316,1754927453211,-400.0,0.00016438,2]
[378617317,1754927453220,-2338.23,0.00016438,2]
[378617318,1754927453229,-1333.09,0.00016438,2]
[378617319,1754927453238,-400.0,0.00016438,2]
[378617320,1754927453248,-400.0,0.00016438,2]
[378617321,1754927453257,-608.35,0.00016438,2]
[378617322,1754927453266,-679.63,0.00016438,2]
[378617323,1754927453275,-2025.29,0.00016438,2]
[378617324,1754927453284,-940.15,0.00016438,2]
[378617325,1754927453293,-400.0,0.00016438,2]
[378617326,1754927453302,-531.36,0.00016438,2]
[378617327,1754927453311,-393.1812068,0.00016438,2]
[378617328,1754927453320,-400.0,0.00016438,2]
[378617329,1754927453329,-786.49,0.00016438,2]
[378617330,1754927453339,-400.0,0.00016438,2]
[378617331,1754927453348,-498.47,0.00016438,2]
[378617332,1754927453358,-2559.46,0.00016438,2]
[378617333,1754927453367,-1468.02,0.00016438,2]
[378617334,1754927453376,-593.19,0.00016438,2]
[378617335,1754927453385,-400.0,0.00016438,2]
[378617336,1754927453394,-1194.45,0.00016438,2]
[378617337,1754927453404,-1740.45,0.00016438,2]
[378617338,1754927453413,-400.0,0.00016438,2]
[378617339,1754927453422,-400.0,0.00016438,2]
[378617340,1754927453432,-1005.43,0.00016438,2]
[378617341,1754927453441,-717.42,0.00016438,2]
[378617342,1754927453450,-400.0,0.00016438,2]
[378617343,1754927453460,-400.0,0.00016438,2]
[378617344,1754927453469,-400.0,0.00016438,2]
[378617345,1754927453477,-400.0,0.00016438,2]
[378617346,1754927453486,-400.0,0.00016438,2]
[378617347,1754927453497,-400.0,0.00016438,2]
[378617348,1754927453507,-1317.76,0.00016438,2]
[378617349,1754927453516,-470.07,0.00016438,2]
[378617350,1754927453525,-370.22357314,0.00016438,2]
[378617351,1754927453534,-300.0,0.00016438,2]
[378617352,1754927453543,-400.0,0.00016438,2]
[378617353,1754927453553,-400.0,0.00016438,2]
[378617354,1754927453562,-1233.08,0.00016438,2]
[378617355,1754927453571,-400.0,0.00016438,2]
[378617356,1754927453580,-854.84,0.00016438,2]
[378617357,1754927453589,-400.0,0.00016438,2]
[378617358,1754927453602,-476.77,0.00016438,2]
[378617359,1754927453611,-400.0,0.00016438,2]
[378617360,1754927453620,-711.45,0.00016438,2]
[378617361,1754927453629,-269.89195188,0.00016438,2]
[378617362,1754927453638,-1981.86,0.00016438,2]
[378617363,1754927453648,-400.0,0.00016438,2]
[378617364,1754927453657,-400.0,0.00016438,2]
[378617365,1754927453666,-400.0,0.00016438,2]
[378617366,1754927453676,-1405.25,0.00016438,2]
[378617367,1754927453685,-563.74,0.00016438,2]
[378617368,1754927453694,-539.06,0.00016438,2]
[378617369,1754927453707,-400.0,0.00016438,2]
[378617370,1754927453716,-400.0,0.00016438,2]
[378617371,1754927453725,-400.0,0.00016438,2]
[378617372,1754927453735,-400.0,0.00016438,2]
[378617373,1754927453746,-2619.68,0.00016438,2]
[378617374,1754927453755,-400.0,0.00016438,2]
[378617375,1754927453765,-460.0,0.00016438,2]
[378617376,1754927453776,-2173.74,0.00016438,2]
[378617377,1754927453785,-1303.52,0.00016438,2]
[378617378,1754927453794,-400.0,0.00016438,2]
[378617379,1754927453803,-1019.12,0.00016438,2]
[378617380,1754927453812,-499.21,0.00016438,2]
[378617381,1754927453821,-400.0,0.00016438,2]
[378617382,1754927453831,-977.86,0.00016438,2]
[378617383,1754927453840,-382.67688617,0.00016438,2]
[378617384,1754927453849,-400.0,0.00016438,2]
[378617385,1754927453858,-4963.91,0.00016438,2]
[378617386,1754927453868,-400.0,0.00016438,2]
[378617387,1754927453877,-819.82,0.00016438,2]
[378617388,1754927453886,-4029.7,0.00016438,2]
[378617389,1754927453895,-400.0,0.00016438,2]
[378617390,1754927453904,-528.65,0.00016438,2]
[378617391,1754927453913,-400.0,0.00016438,2]
[378617392,1754927453922,-151.0,0.00016438,2]
[378617393,1754927453931,-400.0,0.00016438,2]
[378617394,1754927453940,-151.824993,0.00016438,2]
[378617395,1754927453950,-611.83,0.00016438,2]
[378617396,1754927453959,-3795.89,0.00016438,2]
[378617397,1754927453968,-2310.6,0.00016438,2]
[378617398,1754927453977,-537.33,0.00016438,2]
[378617399,1754927453987,-400.0,0.00016438,2]
[378617400,1754927453997,-400.0,0.00016438,2]
[378617401,1754927454007,-503.27,0.00016438,2]
[378617402,1754927454017,-400.0,0.00016438,2]
[378617403,1754927454026,-1134.54,0.00016438,2]
[378617404,1754927454036,-400.0,0.00016438,2]
[378617405,1754927454045,-3760.63,0.00016438,2]
[378617406,1754927454055,-763.86,0.00016438,2]
[378617407,1754927454065,-440.4,0.00016438,2]
[378617408,1754927454074,-1565.61,0.00016438,2]
[378617409,1754927454083,-150.0,0.00016438,2]
[378617410,1754927454093,-1405.53,0.00016438,2]
[378617411,1754927454102,-400.0,0.00016438,2]
[378617412,1754927454112,-455.08,0.00016438,2]
[378617413,1754927454122,-1222.84,0.00016438,2]
[378617414,1754927454132,-979.42,0.00016438,2]
[378617415,1754927454141,-667.61,0.00016438,2]
[378617416,1754927454150,-2970.97,0.00016438,2]
[378617417,1754927454160,-1334.79,0.00016438,2]
[378617418,1754927454169,-1427.75,0.00016438,2]
[378617419,1754927454178,-612.11,0.00016438,2]
[378617420,1754927454187,-400.0,0.00016438,2]
[378617421,1754927454196,-400.0,0.00016438,2]
[378617422,1754927454206,-1167.54,0.00016438,2]
[378617423,1754927454215,-3941.64,0.00016438,2]
[378617424,1754927454225,-660.28,0.00016438,2]
[378617425,1754927454234,-887.24,0.00016438,2]
[378617426,1754927454245,-257.66242169,0.00016438,2]
[378617427,1754927454254,-400.0,0.00016438,2]
[378617428,1754927454263,-2787.4,0.00016438,2]
[378617429,1754927454272,-250.0,0.00016438,2]
[378617430,1754927454282,-400.0,0.00016438,2]
[378617431,1754927454291,-400.0,0.00016438,2]
[378617432,1754927454300,-1477.21,0.00016438,2]
[378617433,1754927454309,-150.0,0.00016438,2]
[378617434,1754927454318,-1068.93,0.00016438,2]
[378617435,1754927454328,-494.35,0.00016438,2]
[378617436,1754927454337,-422.6,0.00016438,2]
[378617437,1754927454347,-460.0,0.00016438,2]
[378617438,1754927454356,-264.29531853,0.00016438,2]
[378617439,1754927454366,-2839.19,0.00016438,2]
[378617440,1754927454375,-1596.38,0.00016438,2]
[378617441,1754927454385,-1065.86,0.00016438,2]
[378617442,1754927454395,-506.92,0.00016438,2]
[378617443,1754927454404,-500.0,0.00016438,2]
[378617444,1754927454413,-590.69,0.00016438,2]
[378617445,1754927454422,-500.0,0.00016438,2]
[378617446,1754927454432,-500.0,0.00016438,2]
[378617447,1754927454441,-400.0,0.00016438,2]
[378617448,1754927454451,-500.0,0.00016438,2]
[378617449,1754927454460,-464.18574558,0.00016438,2]
[378617450,1754927454470,-542.88577578,0.00016438,2]
[378617451,1754927454479,-1171.13,0.00016438,2]
[378617452,1754927454488,-1521.03,0.00016438,2]
[378617453,1754927454500,-292.63007,0.00016438,2]
[378617454,1754927454510,-292.63007,0.00016438,2]
[378617455,1754927454519,-308.84881899,0.00016438,2]
[378617456,1754927454529,-292.63007,0.00016438,2]
[378617457,1754927454539,-870.33,0.00016438,2]
[378617458,1754927454548,-292.63007,0.00016438,2]
[378617459,1754927454558,-292.63007,0.00016438,2]
[378617460,1754927454567,-400.0,0.00016438,2]
[378617461,1754927454577,-151.0,0.00016438,2]
[378617462,1754927454586,-441.86343099,0.00016438,2]
[378617463,1754927454596,-400.0,0.00016438,2]
[378617464,1754927454605,-400.0,0.00016438,2]
[378617465,1754927454615,-151.0,0.00016438,2]
[378617466,1754927454625,-1923.42,0.00016438,2]
[378617467,1754927454634,-151.0,0.00016438,2]
[378617468,1754927454644,-151.0,0.00016438,2]
[378617469,1754927454654,-400.0,0.00016438,2]
[378617470,1754927454663,-292.63007,0.00016438,2]
[378617471,1754927454672,-446.78,0.00016438,2]
[378617472,1754927454682,-400.0,0.00016438,2]
[378617473,1754927454692,-292.63007,0.00016438,2]
[378617474,1754927454703,-460.0,0.00016438,2]
[378617475,1754927454715,-292.63007,0.00016438,2]
[378617476,1754927454859,-400.0,0.00016438,2]
[378617477,1754927454869,-292.63007,0.00016438,2]
[378617478,1754927454879,-400.0,0.00016438,2]
[378617479,1754927454889,-292.63007,0.00016438,2]
[378617480,1754927454898,-1856.71,0.00016438,2]
[378617481,1754927454908,-1586.92,0.00016438,2]
[378617482,1754927454917,-400.0,0.00016438,2]
[378617483,1754927454926,-759.87,0.00016438,2]
[378617484,1754927454936,-400.0,0.00016438,2]
[378617485,1754927454946,-400.0,0.00016438,2]
[378617486,1754927454955,-1514.35,0.00016438,2]
[378617487,1754927454965,-673.09,0.00016438,2]
[378617488,1754927454974,-400.0,0.00016438,2]
[378617489,1754927454983,-501.55,0.00016438,2]
[378617490,1754927454993,-439.6,0.00016438,2]
[378617491,1754927455002,-941.51,0.00016438,2]
[378617492,1754927455011,-400.0,0.00016438,2]
[378617493,1754927455021,-400.0,0.00016438,2]
[378617494,1754927455030,-400.0,0.00016438,2]
[378617495,1754927455040,-400.0,0.00016438,2]
[378617496,1754927455049,-400.0,0.00016438,2]
[378617497,1754927455059,-3885.14,0.00016438,2]
[378617498,1754927455069,-683.11,0.00016438,2]
[378617499,1754927455078,-473.73,0.00016438,2]
[378617500,1754927455088,-2583.67,0.00016438,2]
[378617501,1754927455099,-1813.86,0.00016438,2]
[378617502,1754927455108,-1715.42,0.00016438,2]
[378617503,1754927455118,-2266.23,0.00016438,2]
[378617504,1754927455128,-2672.96,0.00016438,2]
[378617505,1754927455137,-788.96,0.00016438,2]
[378617506,1754927455147,-2897.92,0.00016438,2]
[378617507,1754927455156,-500.0,0.00016438,2]
[378617508,1754927455166,-500.0,0.00016438,2]
[378617509,1754927455175,-400.0,0.00016438,2]
[378617510,1754927455186,-500.0,0.00016438,2]
[378617511,1754927455195,-400.29,0.00016438,2]
[378617512,1754927455204,-400.0,0.00016438,2]
[378617513,1754927455215,-400.0,0.00016438,2]
[378617514,1754927455224,-676.62,0.00016438,2]
[378617515,1754927455233,-3637.18,0.00016438,2]
[378617516,1754927455245,-524.81,0.00016438,2]
[378617517,1754927455254,-705.12,0.00016438,2]
[378617518,1754927455263,-1514.49,0.00016438,2]
[378617519,1754927455273,-400.0,0.00016438,2]
[378617520,1754927455283,-431.36,0.00016438,2]
[378617521,1754927455292,-710.86,0.00016438,2]
[378617522,1754927455302,-400.0,0.00016438,2]
[378617523,1754927455312,-1396.31,0.00016438,2]
[378617524,1754927455322,-400.0,0.00016438,2]
[378617525,1754927455331,-524.97,0.00016438,2]
[378617526,1754927455342,-400.0,0.00016438,2]
[378617527,1754927455352,-400.0,0.00016438,2]
[378617528,1754927455362,-616.24,0.00016438,2]
[378617529,1754927455371,-400.0,0.00016438,2]
[378617530,1754927455381,-500.0,0.00016438,2]
[378617531,1754927455391,-400.0,0.00016438,2]
[378617532,1754927455400,-400.0,0.00016438,2]
[378617533,1754927455410,-547.1,0.00016438,2]
[378617534,1754927455420,-1487.97,0.00016438,2]
[378617535,1754927455430,-1771.27,0.00016438,2]
[378617536,1754927455439,-400.0,0.00016438,2]
[378617537,1754927455449,-2640.83,0.00016438,2]
[378617538,1754927455459,-400.0,0.00016438,2]
[378617539,1754927455468,-1978.15,0.00016438,2]
[378617540,1754927455478,-400.0,0.00016438,2]
[378617541,1754927455488,-1024.61,0.00016438,2]
[378617542,1754927455499,-9101.84,0.00016438,2]
[378617543,1754927455509,-400.0,0.00016438,2]
[378617544,1754927455519,-2917.64,0.00016438,2]
[378617545,1754927455528,-600.0,0.00016438,2]
[378617546,1754927455538,-400.0,0.00016438,2]
[378617547,1754927455548,-1304.51,0.00016438,2]
[378617548,1754927455558,-512.41,0.00016438,2]
[378617549,1754927455568,-400.0,0.00016438,2]
[378617550,1754927455577,-512.41,0.00016438,2]
[378617551,1754927455586,-628.78,0.00016438,2]
[378617552,1754927455597,-512.41,0.00016438,2]
[378617553,1754927455607,-580.73,0.00016438,2]
[378617554,1754927455617,-403.24,0.00016438,2]
[378617555,1754927455626,-403.89944114,0.00016438,2]
[378617556,1754927455636,-592.69,0.00016438,2]
[378617557,1754927455646,-505.53,0.00016438,2]
[378617558,1754927455656,-545.64,0.00016438,2]
[378617559,1754927455666,-1447.63,0.00016438,2]
[378617560,1754927455676,-458.19,0.00016438,2]
[378617561,1754927455686,-400.0,0.00016438,2]
[378617562,1754927455696,-400.98478858,0.00016438,2]
[378617563,1754927455710,-306.84,0.00016438,2]
[378617564,1754927455721,-651.77,0.00016438,2]
[378617565,1754927455730,-400.0,0.00016438,2]
[378617566,1754927455740,-1090.88,0.00016438,2]
[378617567,1754927455751,-400.0,0.00016438,2]
[378617568,1754927455760,-400.0,0.00016438,2]
[378617569,1754927455770,-1016.91,0.00016438,2]
[378617570,1754927455779,-400.0,0.00016438,2]
[378617571,1754927455790,-1681.83,0.00016438,2]
[378617572,1754927455799,-2407.53,0.00016438,2]
[378617573,1754927455809,-832.82,0.00016438,2]
[378617574,1754927455818,-1043.91,0.00016438,2]
[378617575,1754927455827,-400.0,0.00016438,2]
[378617576,1754927455837,-400.0,0.00016438,2]
[378617577,1754927455847,-400.0,0.00016438,2]
[378617578,1754927455856,-400.0,0.00016438,2]
[378617579,1754927455866,-400.0,0.00016438,2]
[378617580,1754927455875,-747.85,0.00016438,2]
[378617581,1754927455885,-762.19,0.00016438,2]
[378617582,1754927455895,-1856.91,0.00016438,2]
[378617583,1754927455904,-3963.41,0.00016438,2]
[378617584,1754927455913,-950.3,0.00016438,2]
[378617585,1754927455923,-3137.11,0.00016438,2]
[378617586,1754927455932,-809.97,0.00016438,2]
[378617587,1754927455942,-1406.69,0.00016438,2]
[378617588,1754927455952,-400.0,0.00016438,2]
[378617589,1754927455961,-2310.51,0.00016438,2]
[378617590,1754927455971,-667.91,0.00016438,2]
[378617591,1754927455980,-400.0,0.00016438,2]
[378617592,1754927455989,-2584.94,0.00016438,2]
[378617593,1754927456002,-400.0,0.00016438,2]
[378617594,1754927456011,-166.40511487,0.0001644,2]
[378617595,1754927456021,-200.0,0.00016442,2]
[378617596,1754927456031,-2715.12328229,0.00016469,2]
[378617597,1754927456040,-160.0,0.00016471,2]
[378617598,1754927456050,-211.73953792,0.00016471,2]
[378617599,1754927456059,-457.87080987,0.00016471,2]
[378617600,1754927456068,-842.86497659,0.00016471,2]
[378617601,1754927456078,-368.620943,0.00016472,2]
[378617602,1754927456087,-368.620943,0.00016472,2]
[378617603,1754927456096,-500.0,0.00016473,2]
[378617604,1754927456105,-500.0,0.00016473,2]
[378617605,1754927456115,-500.0,0.00016473,2]
[378617606,1754927456125,-501.11420916,0.00016473,2]
[378617607,1754927456134,-500.0,0.00016473,2]
[378617608,1754927456143,-500.0,0.00016473,2]
[378617609,1754927456153,-500.0,0.00016473,2]
[378617610,1754927456162,-500.0,0.00016473,2]
[378617611,1754927456172,-500.0,0.00016473,2]
[378617612,1754927456182,-500.0,0.00016473,2]
[378617613,1754927456191,-500.0,0.00016473,2]
[378617614,1754927456200,-500.0,0.00016473,2]
[378617615,1754927456209,-500.0,0.00016473,2]
[378617616,1754927456219,-500.0,0.00016473,2]
[378617617,1754927456228,-500.0,0.00016473,2]
[378617618,1754927456238,-500.0,0.00016473,2]
[378617619,1754927456251,-500.0,0.00016473,2]
[378617620,1754927456260,-500.0,0.00016473,2]
[378617621,1754927456270,-500.0,0.00016473,2]
[378617622,1754927456279,-151.0,0.00016473,2]
[378617623,1754927456289,-151.0,0.00016473,2]
[378617624,1754927456299,-563.505899,0.00016473,2]
[378617625,1754927456309,-563.505899,0.00016473,2]
[378617626,1754927456318,-392.763289,0.0001649,2]
[378617627,1754927456329,-392.763289,0.0001649,2]
[378617628,1754927456339,-331.761919,0.0001649,2]
[378617629,1754927456348,-331.761919,0.0001649,2]
[378617630,1754927456358,-233.0,0.00016491,2]
[378617631,1754927456367,-682.857986,0.000165,2]
[378617632,1754927456378,-682.857986,0.000165,2]
[378617633,1754927456388,-151.0,0.000165,2]
[378617634,1754927456398,-151.0,0.000165,2]
[378617635,1754927456408,-1028.893763,0.000165,2]
[378617636,1754927456417,-1028.893763,0.000165,2]
[378617637,1754927456427,-343.142673,0.000165,2]
[378617638,1754927456437,-343.142673,0.000165,2]
[378617639,1754927456447,-151.0,0.000165,2]
[378617640,1754927456457,-2498.41,0.000165,2]
[378617641,1754927456466,-1109.51,0.000165,2]
[378617642,1754927456476,-713.65,0.000165,2]
[378617643,1754927456485,-390.95,0.000165,2]
[378617644,1754927456496,-1030.793349,0.000165,2]
[378617645,1754927456506,-1030.793349,0.000165,2]
[378617646,1754927456515,-1181.7,0.000165,2]
[378617647,1754927456524,-359.87,0.000165,2]
[378617648,1754927456533,-2328.35,0.000165,2]
[378617649,1754927456543,-345.24,0.000165,2]
[378617650,1754927456553,-150.53,0.000165,2]
[378617651,1754927456562,-451.718401,0.000165,2]
[378617652,1754927456571,-451.718401,0.000165,2]
[378617653,1754927456581,-151.0,0.000165,2]
[378617654,1754927456590,-1000.0,0.000165,2]
[378617655,1754927456600,-165.73,0.000165,2]
[378617656,1754927456610,-302.02,0.000165,2]
[378617657,1754927456619,-150.0,0.000165,2]
[378617658,1754927456628,-162.16,0.000165,2]
[378617659,1754927456639,-151.64,0.000165,2]
[378617660,1754927456648,-467.96,0.000165,2]
[378617661,1754927456657,-797.4,0.000165,2]
[378617662,1754927456667,-151.0,0.000165,2]
[378617663,1754927456676,-150.0,0.000165,2]
[378617664,1754927456686,-233.0,0.00016506,2]
[378617665,1754927456695,-175.110775,0.0001651,2]
[378617666,1754927456706,-175.110775,0.0001651,2]
[378617667,1754927456716,-151.0,0.0001651,2]
[378617668,1754927456726,-181.252104,0.0001651,2]
[378617669,1754927456735,-1052.21,0.0001651,2]